fUSD/lending_fUSD_20260624
["ID","MTS","AMOUNT","RATE_DAILY","PERIOD"]
[426291190,1782249041000,-599.999999,0.0002,2]
[426291264,1782249042000,-10203.95536531,0.000211,2]
[426291256,1782249042000,-203.0,0.00021,2]
[426291253,1782249042000,-156.0,0.00021,2]
[426291261,1782249042000,-365.0,0.00021,2]
[426291263,1782249042000,-5529.0,0.00021,3]
[426291257,1782249042000,-807.0,0.00021,2]
[426291262,1782249042000,-486.0,0.00021,2]
[426291260,1782249042000,-452.99296183,0.00021,2]
[426291259,1782249042000,-519.0,0.00021,2]
[426291254,1782249042000,-729.0,0.00021,2]
[426291258,1782249042000,-160.0,0.00021,7]
[426291265,1782249042000,-452.99296183,0.000212,2]
[426291274,1782249042000,-151.0,0.00021236,2]
[426291266,1782249042000,-150.21,0.00021205,2]
[426291277,1782249042000,-689.80999983,0.00021299,2]
[426291285,1782249042000,-530.0,0.00021506,2]
[426291268,1782249042000,-642.25,0.00021227,2]
[426291275,1782249042000,-200.0,0.00021236,2]
[426291269,1782249042000,-1281.59,0.00021227,2]
[426291271,1782249042000,-576.52,0.00021227,2]
[426291273,1782249042000,-178.27,0.00021227,2]
[426291270,1782249042000,-1112.75,0.00021227,2]
[426291272,1782249042000,-1149.59,0.00021227,2]
[426291223,1782249042000,-426.63485121,0.000204,2]
[426291255,1782249042000,-224.0,0.00021,2]
[426291267,1782249042000,-680.0,0.00021212,3]
[426291252,1782249042000,-168.0,0.00021,2]
[426291227,1782249042000,-1229.0,0.00020425,2]
[426291251,1782249042000,-1385.0,0.00021,2]
[426291224,1782249042000,-383.0,0.00020425,2]
[426291226,1782249042000,-1361.0,0.00020425,2]
[426291225,1782249042000,-1277.0,0.00020425,2]
[426291229,1782249042000,-216.0,0.00020425,2]
[426291228,1782249042000,-6083.0,0.00020425,2]
[426291230,1782249042000,-10203.95536531,0.000205,2]
[426291232,1782249042000,-250.0,0.00020548,10]
[426291231,1782249042000,-35694.0,0.000205,2]
[426291234,1782249042000,-892.47314182,0.000206,2]
[426291233,1782249042000,-177.97943159,0.00020569,2]
[426291237,1782249042000,-680.0,0.00020606,2]
[426291236,1782249042000,-426.63485121,0.000206,2]
[426291239,1782249042000,-200.0,0.00020688,2]
[426291238,1782249042000,-151.0,0.00020688,2]
[426291235,1782249042000,-404.99652969,0.000206,2]
[426291240,1782249042000,-2080.17592889,0.00020688,2]
[426291244,1782249042000,-426.63485121,0.000208,2]
[426291248,1782249042000,-10203.95536531,0.000209,2]
[426291249,1782249042000,-2000.0,0.00020998,7]
[426291246,1782249042000,-500.0,0.00020819,2]
[426291245,1782249042000,-500.0,0.00020819,2]
[426291243,1782249042000,-404.99652969,0.000208,2]
[426291241,1782249042000,-10203.95536531,0.000207,2]
[426291242,1782249042000,-892.47314182,0.000208,2]
[426291247,1782249042000,-530.0,0.00020821,2]
[426291250,1782249042000,-1046.0,0.00021,2]
[426291283,1782249042000,-499.83315559,0.00021444,2]
[426291276,1782249042000,-2157.14243826,0.00021236,2]
[426291278,1782249042000,-10203.95536531,0.000213,2]
[426291311,1782249042000,-1385.0,0.00022,2]
[426291322,1782249042000,-450.0,0.00022,2]
[426291315,1782249042000,-729.0,0.00022,2]
[426291314,1782249042000,-9424.07,0.00022,2]
[426291318,1782249042000,-807.0,0.00022,2]
[426291317,1782249042000,-203.0,0.00022,2]
[426291316,1782249042000,-224.0,0.00022,2]
[426291321,1782249042000,-10203.95536531,0.00022,2]
[426291319,1782249042000,-818.19788804,0.00022,7]
[426291320,1782249042000,-519.0,0.00022,2]
[426291325,1782249042000,-486.0,0.00022,2]
[426291324,1782249042000,-365.0,0.00022,2]
[426291312,1782249042000,-168.0,0.00022,2]
[426291326,1782249042000,-530.12817331,0.000221,7]
[426291327,1782249042000,-530.0,0.00022191,2]
[426291328,1782249042000,-10203.95536531,0.000222,2]
[426291331,1782249042000,-2319.72410669,0.00022332,2]
[426291332,1782249042000,-150.0,0.00022333,2]
[426291333,1782249042000,-974.8,0.00022353,2]
[426291329,1782249042000,-151.0,0.00022332,2]
[426291330,1782249042000,-200.0,0.00022332,2]
[426291337,1782249042000,-1691.3548266,0.00022407,2]
[426291335,1782249042000,-1691.3548266,0.00022407,2]
[426291334,1782249042000,-10203.95536531,0.000224,2]
[426291336,1782249042000,-1691.3548266,0.00022407,2]
[426291279,1782249042000,-452.99296183,0.000214,2]
[426291323,1782249042000,-2175.0,0.00022,2]
[426291313,1782249042000,-156.0,0.00022,2]
[426291297,1782249042000,-2000.0,0.0002185,2]
[426291309,1782249042000,-2000.0,0.00021998,7]
[426291310,1782249042000,-1046.0,0.00022,2]
[426291281,1782249042000,-2000.0,0.00021437,2]
[426291287,1782249042000,-10203.95536531,0.000216,2]
[426291282,1782249042000,-500.0,0.00021437,2]
[426291286,1782249042000,-452.99296183,0.000216,2]
[426291284,1782249042000,-500.0,0.00021444,2]
[426291288,1782249042000,-1538.77,0.000216,2]
[426291289,1782249042000,-21931.91,0.00021615,2]
[426291290,1782249042000,-306.18,0.00021644,4]
[426291292,1782249042000,-151.0,0.00021784,2]
[426291293,1782249042000,-200.0,0.00021784,2]
[426291291,1782249042000,-459.235606,0.00021716,2]
[426291294,1782249042000,-2236.95670847,0.00021784,2]
[426291280,1782249042000,-5529.0,0.000214,5]
[426291296,1782249042000,-680.0,0.00021818,3]
[426291295,1782249042000,-10203.95536531,0.000218,2]
[426291305,1782249042000,-5000.0,0.00021918,2]
[426291308,1782249042000,-500.0,0.0002197,2]
[426291306,1782249042000,-250.0,0.00021918,12]
[426291302,1782249042000,-559.22,0.00021864,2]
[426291307,1782249042000,-500.0,0.0002197,2]
[426291303,1782249042000,-1115.1,0.00021864,2]
[426291301,1782249042000,-1079.37,0.00021864,2]
[426291300,1782249042000,-1243.14,0.00021864,2]
[426291299,1782249042000,-622.98,0.00021864,2]
[426291298,1782249042000,-949.26,0.0002185,2]
[426291304,1782249042000,-452.99296183,0.000219,2]
[426291373,1782249043000,-50000.0,0.00023,5]
[426291378,1782249043000,-365.0,0.00023,2]
[426291376,1782249043000,-300.0,0.00023,10]
[426291374,1782249043000,-50000.0,0.00023,7]
[426291372,1782249043000,-50000.0,0.00023,7]
[426291380,1782249043000,-486.0,0.00023,2]
[426291377,1782249043000,-2175.0,0.00023,2]
[426291369,1782249043000,-50000.0,0.00023,5]
[426291375,1782249043000,-8224.43,0.00023,5]
[426291371,1782249043000,-50000.0,0.00023,5]
[426291370,1782249043000,-50000.0,0.00023,7]
[426291379,1782249043000,-545.08,0.00023,2]
[426291390,1782249043000,-500.0,0.00023173,2]
[426291387,1782249043000,-151.0,0.00023173,2]
[426291385,1782249043000,-209.98865178,0.00023144,2]
[426291381,1782249043000,-680.0,0.0002303,4]
[426291392,1782249043000,-500.0,0.00023173,2]
[426291384,1782249043000,-151.44105201,0.00023144,2]
[426291382,1782249043000,-195.20438385,0.00023082,3]
[426291389,1782249043000,-174.61919141,0.00023173,2]
[426291388,1782249043000,-621.78829552,0.00023173,2]
[426291383,1782249043000,-10203.95536531,0.000231,2]
[426291394,1782249043000,-187.78006525,0.00023173,2]
[426291403,1782249043000,-500.0,0.00023173,2]
[426291397,1782249043000,-646.65982734,0.00023173,2]
[426291366,1782249043000,-50000.0,0.00023,7]
[426291386,1782249043000,-155.64062986,0.00023173,2]
[426291363,1782249043000,-203.0,0.00023,2]
[426291353,1782249043000,-10203.95536531,0.000229,2]
[426291368,1782249043000,-50000.0,0.00023,7]
[426291345,1782249043000,-689.80999983,0.00022565,2]
[426291338,1782249043000,-680.0,0.00022424,4]
[426291339,1782249043000,-603.71,0.00022501,7]
[426291343,1782249043000,-1080.61,0.00022501,7]
[426291341,1782249043000,-1045.99,0.00022501,7]
[426291342,1782249043000,-541.93,0.00022501,7]
[426291340,1782249043000,-1204.7,0.00022501,7]
[426291344,1782249043000,-150.0,0.0002254,2]
[426291346,1782249043000,-217.8065758,0.0002263,3]
[426291356,1782249043000,-2000.0,0.00022999,7]
[426291349,1782249043000,-500.0,0.0002287,2]
[426291355,1782249043000,-200.0,0.000229,10]
[426291352,1782249043000,-2405.55389863,0.0002288,2]
[426291347,1782249043000,-10203.95536531,0.000227,2]
[426291350,1782249043000,-151.0,0.0002288,2]
[426291402,1782249043000,-152.0,0.00023173,2]
[426291348,1782249043000,-500.0,0.00022795,2]
[426291351,1782249043000,-200.0,0.0002288,2]
[426291354,1782249043000,-1538.77,0.000229,7]
[426291357,1782249043000,-1046.0,0.00023,2]
[426291367,1782249043000,-50000.0,0.00023,5]
[426291360,1782249043000,-159.21789281,0.00023,2]
[426291365,1782249043000,-519.0,0.00023,2]
[426291358,1782249043000,-1385.0,0.00023,2]
[426291359,1782249043000,-168.0,0.00023,2]
[426291362,1782249043000,-224.0,0.00023,2]
[426291361,1782249043000,-729.0,0.00023,2]
[426291364,1782249043000,-807.0,0.00023,2]
[426291404,1782249043000,-152.0,0.00023173,2]
[426291391,1782249043000,-578.20924308,0.00023173,2]
[426291395,1782249043000,-1157.22492116,0.00023173,2]
[426291432,1782249043000,-187.78006524,0.00023173,2]
[426291431,1782249043000,-8565.75555911,0.00023173,2]
[426291436,1782249043000,-151.0,0.00023228,2]
[426291441,1782249043000,-151.0,0.00023283,2]
[426291438,1782249043000,-153.17393377,0.00023228,2]
[426291435,1782249043000,-151.0,0.00023173,2]
[426291439,1782249043000,-10520.98,0.0002323,7]
[426291437,1782249043000,-151.0,0.00023228,2]
[426291434,1782249043000,-187.78006524,0.00023173,2]
[426291433,1782249043000,-628.78788257,0.00023173,2]
[426291440,1782249043000,-150.0,0.0002326,21]
[426291443,1782249043000,-153.17393377,0.00023283,2]
[426291453,1782249043000,-151.0,0.00023393,2]
[426291442,1782249043000,-151.0,0.00023283,2]
[426291444,1782249043000,-250.0,0.00023288,14]
[426291454,1782249043000,-151.0,0.00023393,2]
[426291445,1782249043000,-10203.95536531,0.000233,2]
[426291446,1782249043000,-151.0,0.00023338,2]
[426291450,1782249043000,-1012.61,0.0002335,7]
[426291452,1782249043000,-206.0,0.00023354,2]
[426291451,1782249043000,-1046.13,0.0002335,7]
[426291449,1782249043000,-1166.25,0.0002335,7]
[426291448,1782249043000,-153.17393377,0.00023338,2]
[426291447,1782249043000,-151.0,0.00023338,2]
[426291455,1782249043000,-153.17393377,0.00023393,2]
[426291401,1782249043000,-500.0,0.00023173,2]
[426291456,1782249043000,-1277.0,0.00023425,2]
[426291430,1782249043000,-157.41989846,0.00023173,2]
[426291424,1782249043000,-500.0,0.00023173,2]
[426291457,1782249043000,-1361.0,0.00023425,2]
[426291426,1782249043000,-187.78006524,0.00023173,2]
[426291427,1782249043000,-153.17393377,0.00023173,2]
[426291396,1782249043000,-500.0,0.00023173,2]
[426291398,1782249043000,-187.78006524,0.00023173,2]
[426291405,1782249043000,-500.0,0.00023173,2]
[426291399,1782249043000,-500.0,0.00023173,2]
[426291400,1782249043000,-151.0,0.00023173,2]
[426291406,1782249043000,-500.0,0.00023173,2]
[426291408,1782249043000,-500.0,0.00023173,2]
[426291409,1782249043000,-152.0,0.00023173,2]
[426291414,1782249043000,-500.0,0.00023173,2]
[426291410,1782249043000,-500.0,0.00023173,2]
[426291415,1782249043000,-500.0,0.00023173,2]
[426291411,1782249043000,-152.0,0.00023173,2]
[426291393,1782249043000,-500.0,0.00023173,2]
[426291418,1782249043000,-152.0,0.00023173,2]
[426291425,1782249043000,-1915.47834585,0.00023173,2]
[426291422,1782249043000,-152.0,0.00023173,2]
[426291423,1782249043000,-152.0,0.00023173,2]
[426291420,1782249043000,-152.0,0.00023173,2]
[426291421,1782249043000,-152.0,0.00023173,2]
[426291429,1782249043000,-527.32278436,0.00023173,2]
[426291407,1782249043000,-152.0,0.00023173,2]
[426291428,1782249043000,-158.19471084,0.00023173,2]
[426291417,1782249043000,-152.0,0.00023173,2]
[426291416,1782249043000,-152.0,0.00023173,2]
[426291413,1782249043000,-152.0,0.00023173,2]
[426291412,1782249043000,-500.0,0.00023173,2]
[426291419,1782249043000,-152.0,0.00023173,2]
[426291502,1782249044000,-689.80999983,0.00023832,2]
[426291494,1782249044000,-286.15596075,0.00023721,2]
[426291501,1782249044000,-10203.95536531,0.000238,2]
[426291497,1782249044000,-151.0,0.00023723,2]
[426291513,1782249044000,-1385.0,0.00024,2]
[426291482,1782249044000,-151.0,0.00023668,2]
[426291496,1782249044000,-151.0,0.00023723,2]
[426291495,1782249044000,-151.0,0.00023721,2]
[426291488,1782249044000,-527.32278436,0.00023721,2]
[426291483,1782249044000,-153.17393377,0.00023668,2]
[426291491,1782249044000,-8882.6885148,0.00023721,2]
[426291500,1782249044000,-151.0,0.00023778,2]
[426291499,1782249044000,-151.0,0.00023778,2]
[426291507,1782249044000,-151.0,0.00023976,2]
[426291493,1782249044000,-628.78788257,0.00023721,2]
[426291503,1782249044000,-151.0,0.00023833,2]
[426291504,1782249044000,-151.0,0.00023833,2]
[426291506,1782249044000,-151.0,0.00023888,2]
[426291505,1782249044000,-151.0,0.00023888,2]
[426291514,1782249044000,-168.0,0.00024,2]
[426291508,1782249044000,-200.0,0.00023976,2]
[426291510,1782249044000,-1915.47834585,0.00023995,2]
[426291511,1782249044000,-2000.0,0.00023999,7]
[426291509,1782249044000,-2586.85809042,0.00023976,2]
[426291512,1782249044000,-1046.0,0.00024,2]
[426291490,1782249044000,-157.41989846,0.00023721,2]
[426291492,1782249044000,-194.72792766,0.00023721,2]
[426291485,1782249044000,-518.5,0.00023721,2]
[426291478,1782249044000,-153.17393377,0.00023613,2]
[426291481,1782249044000,-151.0,0.00023668,2]
[426291518,1782249044000,-807.0,0.00024,2]
[426291458,1782249044000,-1229.0,0.00023425,2]
[426291466,1782249044000,-151.0,0.00023448,2]
[426291461,1782249044000,-151.0,0.00023428,2]
[426291465,1782249044000,-151.0,0.00023448,2]
[426291464,1782249044000,-1915.47834585,0.00023447,2]
[426291463,1782249044000,-2494.55939288,0.00023428,2]
[426291462,1782249044000,-200.0,0.00023428,2]
[426291459,1782249044000,-6083.0,0.00023425,2]
[426291460,1782249044000,-216.0,0.00023425,2]
[426291475,1782249044000,-10203.95536531,0.000236,2]
[426291468,1782249044000,-151.0,0.00023503,2]
[426291486,1782249044000,-217.15233878,0.00023721,2]
[426291469,1782249044000,-151.0,0.00023503,2]
[426291479,1782249044000,-680.0,0.00023636,5]
[426291476,1782249044000,-151.0,0.00023613,2]
[426291474,1782249044000,-153.17393377,0.00023558,2]
[426291467,1782249044000,-153.17393377,0.00023448,2]
[426291470,1782249044000,-153.17393377,0.00023503,2]
[426291477,1782249044000,-151.0,0.00023613,2]
[426291473,1782249044000,-151.0,0.00023558,2]
[426291472,1782249044000,-151.0,0.00023558,2]
[426291471,1782249044000,-172.60219192,0.00023535,3]
[426291484,1782249044000,-181.08010149,0.00023721,2]
[426291489,1782249044000,-1915.47834585,0.00023721,2]
[426291487,1782249044000,-158.19471084,0.00023721,2]
[426291480,1782249044000,-150.0,0.00023667,2]
[426291521,1782249044000,-50000.0,0.00024,5]
[426291498,1782249044000,-153.17393385,0.00023723,2]
[426291519,1782249044000,-76651.80117618,0.00024,2]
[426291547,1782249044000,-405.32554294,0.00024293,2]
[426291544,1782249044000,-201.93286098,0.00024269,2]
[426291545,1782249044000,-628.78788257,0.00024269,2]
[426291555,1782249044000,-2682.57183977,0.00024524,2]
[426291552,1782249044000,-152.0,0.00024493,3]
[426291554,1782249044000,-200.0,0.00024524,2]
[426291553,1782249044000,-151.0,0.00024524,2]
[426291557,1782249044000,-698.07,0.00024627,7]
[426291556,1782249044000,-1915.47834585,0.00024543,2]
[426291561,1782249044000,-1000.0,0.00024657,2]
[426291563,1782249044000,-1000.0,0.00024657,2]
[426291558,1782249044000,-1000.0,0.00024657,2]
[426291546,1782249044000,-151.0,0.00024269,2]
[426291559,1782249044000,-1000.0,0.00024657,2]
[426291575,1782249044000,-1000.0,0.00024657,2]
[426291565,1782249044000,-1000.0,0.00024657,2]
[426291569,1782249044000,-1000.0,0.00024657,2]
[426291570,1782249044000,-1000.0,0.00024657,2]
[426291572,1782249044000,-1000.0,0.00024657,2]
[426291566,1782249044000,-1000.0,0.00024657,2]
[426291567,1782249044000,-1000.0,0.00024657,2]
[426291573,1782249044000,-1000.0,0.00024657,2]
[426291564,1782249044000,-1000.0,0.00024657,2]
[426291568,1782249044000,-1000.0,0.00024657,2]
[426291574,1782249044000,-1000.0,0.00024657,2]
[426291517,1782249044000,-203.0,0.00024,2]
[426291560,1782249044000,-1000.0,0.00024657,2]
[426291543,1782249044000,-9211.34798984,0.00024269,2]
[426291562,1782249044000,-1000.0,0.00024657,2]
[426291541,1782249044000,-1915.47834585,0.00024269,2]
[426291542,1782249044000,-157.41989852,0.00024269,2]
[426291515,1782249044000,-729.0,0.00024,2]
[426291526,1782249044000,-486.0,0.00024,2]
[426291516,1782249044000,-224.0,0.00024,2]
[426291520,1782249044000,-519.0,0.00024,2]
[426291524,1782249044000,-500.0,0.00024,2]
[426291522,1782249044000,-50000.0,0.00024,5]
[426291525,1782249044000,-365.0,0.00024,2]
[426291527,1782249044000,-711.03930691,0.00024113,7]
[426291538,1782249044000,-537.6845,0.00024269,2]
[426291529,1782249044000,-2986.0,0.00024148,5]
[426291531,1782249044000,-525.84,0.00024174,2]
[426291528,1782249044000,-1171.0,0.00024148,5]
[426291535,1782249044000,-500.0,0.00024241,2]
[426291523,1782249044000,-10203.95536531,0.00024,2]
[426291539,1782249044000,-158.19471085,0.00024269,2]
[426291571,1782249044000,-1000.0,0.00024657,2]
[426291549,1782249044000,-1538.77,0.000243,7]
[426291550,1782249044000,-974.8,0.00024324,2]
[426291540,1782249044000,-527.32278436,0.00024269,2]
[426291548,1782249044000,-10203.95536531,0.000243,2]
[426291551,1782249044000,-285.0,0.00024421,2]
[426291536,1782249044000,-680.0,0.00024242,6]
[426291537,1782249044000,-187.78006524,0.00024269,2]
[426291532,1782249044000,-1022.25,0.00024174,2]
[426291534,1782249044000,-2000.0,0.00024241,2]
[426291533,1782249044000,-2951.45,0.00024174,2]
[426291530,1782249044000,-49442.71,0.00024174,2]
[426291617,1782249045000,-1000.0,0.00024657,2]
[426291613,1782249045000,-1000.0,0.00024657,2]
[426291622,1782249045000,-1000.0,0.00024657,2]
[426291623,1782249045000,-1000.0,0.00024657,2]
[426291616,1782249045000,-1000.0,0.00024657,2]
[426291607,1782249045000,-1000.0,0.00024657,2]
[426291608,1782249045000,-1000.0,0.00024657,2]
[426291610,1782249045000,-1000.0,0.00024657,2]
[426291606,1782249045000,-1000.0,0.00024657,2]
[426291609,1782249045000,-1000.0,0.00024657,2]
[426291612,1782249045000,-1000.0,0.00024657,2]
[426291620,1782249045000,-1000.0,0.00024657,2]
[426291614,1782249045000,-1000.0,0.00024657,2]
[426291626,1782249045000,-1000.0,0.00024657,2]
[426291611,1782249045000,-1000.0,0.00024657,2]
[426291615,1782249045000,-1000.0,0.00024657,2]
[426291619,1782249045000,-1000.0,0.00024657,2]
[426291621,1782249045000,-1000.0,0.00024657,2]
[426291624,1782249045000,-1000.0,0.00024657,2]
[426291627,1782249045000,-1000.0,0.00024657,2]
[426291625,1782249045000,-1000.0,0.00024657,2]
[426291628,1782249045000,-1000.0,0.00024657,2]
[426291637,1782249045000,-37721.26356545,0.00024781,7]
[426291635,1782249045000,-155.100243,0.00024778,7]
[426291629,1782249045000,-1000.0,0.00024657,2]
[426291631,1782249045000,-250.0,0.00024658,16]
[426291618,1782249045000,-1000.0,0.00024657,2]
[426291605,1782249045000,-1000.0,0.00024657,2]
[426291576,1782249045000,-1000.0,0.00024657,2]
[426291604,1782249045000,-1000.0,0.00024657,2]
[426291584,1782249045000,-1000.0,0.00024657,2]
[426291580,1782249045000,-1000.0,0.00024657,2]
[426291578,1782249045000,-1000.0,0.00024657,2]
[426291581,1782249045000,-1000.0,0.00024657,2]
[426291583,1782249045000,-1000.0,0.00024657,2]
[426291579,1782249045000,-1000.0,0.00024657,2]
[426291582,1782249045000,-1000.0,0.00024657,2]
[426291577,1782249045000,-1000.0,0.00024657,2]
[426291586,1782249045000,-1000.0,0.00024657,2]
[426291585,1782249045000,-1000.0,0.00024657,2]
[426291588,1782249045000,-1000.0,0.00024657,2]
[426291598,1782249045000,-1000.0,0.00024657,2]
[426291600,1782249045000,-1000.0,0.00024657,2]
[426291587,1782249045000,-1000.0,0.00024657,2]
[426291591,1782249045000,-1000.0,0.00024657,2]
[426291589,1782249045000,-1000.0,0.00024657,2]
[426291593,1782249045000,-1000.0,0.00024657,2]
[426291592,1782249045000,-1000.0,0.00024657,2]
[426291596,1782249045000,-1000.0,0.00024657,2]
[426291594,1782249045000,-1000.0,0.00024657,2]
[426291595,1782249045000,-1000.0,0.00024657,2]
[426291597,1782249045000,-1000.0,0.00024657,2]
[426291599,1782249045000,-1000.0,0.00024657,2]
[426291601,1782249045000,-1000.0,0.00024657,2]
[426291602,1782249045000,-1000.0,0.00024657,2]
[426291603,1782249045000,-1000.0,0.00024657,2]
[426291590,1782249045000,-1000.0,0.00024657,2]
[426291632,1782249045000,-1351.55,0.00024658,2]
[426291630,1782249045000,-1119.53256096,0.00024657,2]
[426291634,1782249045000,-187.30590878,0.00024679,2]
[426291673,1782249045000,-630.6877681,0.00025,5]
[426291668,1782249045000,-50000.0,0.00025,10]
[426291672,1782249045000,-170.57290139,0.00025,2]
[426291675,1782249045000,-150.0,0.00025,2]
[426291678,1782249045000,-531.44932809,0.00025,2]
[426291677,1782249045000,-1006.67618899,0.00025,2]
[426291680,1782249045000,-241.66555425,0.00025,2]
[426291684,1782249045000,-205.447498,0.00025,2]
[426291685,1782249045000,-205.447498,0.00025,2]
[426291676,1782249045000,-1569682.83348132,0.00025,2]
[426291681,1782249045000,-50000.0,0.00025,7]
[426291686,1782249045000,-205.447498,0.00025,2]
[426291682,1782249045000,-50000.0,0.00025,7]
[426291679,1782249045000,-1361.33294408,0.00025,4]
[426291698,1782249045000,-654.820538,0.00025,2]
[426291688,1782249045000,-187.792673,0.00025,2]
[426291689,1782249045000,-187.792673,0.00025,2]
[426291691,1782249045000,-1993.101868,0.00025,2]
[426291690,1782249045000,-187.792673,0.00025,2]
[426291694,1782249045000,-1993.101868,0.00025,2]
[426291693,1782249045000,-1993.101868,0.00025,2]
[426291692,1782249045000,-1993.101868,0.00025,2]
[426291687,1782249045000,-187.792673,0.00025,2]
[426291696,1782249045000,-151.0,0.00025,2]
[426291695,1782249045000,-151.000011,0.00025,2]
[426291697,1782249045000,-288.535056,0.00025,2]
[426291633,1782249045000,-1000.0,0.00024658,2]
[426291671,1782249045000,-3379.98868972,0.00025,2]
[426291670,1782249045000,-2243.23017917,0.00025,2]
[426291683,1782249045000,-205.447498,0.00025,2]
[426291666,1782249045000,-3102.46986971,0.00025,2]
[426291639,1782249045000,-5260.63529455,0.00024781,7]
[426291669,1782249045000,-221220.36923255,0.00025,7]
[426291649,1782249045000,-151.0,0.00024817,2]
[426291651,1782249045000,-680.0,0.00024848,6]
[426291650,1782249045000,-512.57,0.00024844,7]
[426291641,1782249045000,-194.72792766,0.00024817,2]
[426291647,1782249045000,-628.78788257,0.00024817,2]
[426291643,1782249045000,-1915.47834585,0.00024817,2]
[426291646,1782249045000,-209.40437684,0.00024817,2]
[426291644,1782249045000,-527.32278436,0.00024817,2]
[426291645,1782249045000,-9501.05569064,0.00024817,2]
[426291652,1782249045000,-150.0,0.0002485,2]
[426291659,1782249045000,-732.7031038,0.00025,2]
[426291658,1782249045000,-211.52221516,0.00025,2]
[426291642,1782249045000,-557.5788265,0.00024817,2]
[426291665,1782249045000,-622.65147549,0.00025,2]
[426291667,1782249045000,-7265.49077508,0.00025,2]
[426291655,1782249045000,-1058.0,0.00025,2]
[426291664,1782249045000,-813.06220337,0.00025,2]
[426291674,1782249045000,-4885.63578395,0.00025,2]
[426291663,1782249045000,-540.0,0.00025,2]
[426291662,1782249045000,-212.62523041,0.00025,2]
[426291657,1782249045000,-170.00524167,0.00025,2]
[426291661,1782249045000,-239.67306325,0.00025,2]
[426291656,1782249045000,-1390.0,0.00025,2]
[426291654,1782249045000,-2000.0,0.00024999,7]
[426291653,1782249045000,-150.0,0.00024926,2]
[426291660,1782249045000,-1819.57891694,0.00025,2]
[426291738,1782249046000,-628.78788257,0.00025365,2]
[426291746,1782249046000,-181.78567049,0.0002543,2]
[426291740,1782249046000,-156.89362467,0.0002543,2]
[426291736,1782249046000,-527.32278436,0.00025365,2]
[426291737,1782249046000,-217.15233878,0.00025365,2]
[426291725,1782249046000,-403.33,0.00025,2]
[426291728,1782249046000,-200.0,0.00025072,2]
[426291735,1782249046000,-1915.47834585,0.00025365,2]
[426291733,1782249046000,-201.93286098,0.00025365,2]
[426291726,1782249046000,-269.249007,0.00025,2]
[426291742,1782249046000,-159.11482559,0.0002543,2]
[426291747,1782249046000,-692.46006228,0.0002543,2]
[426291744,1782249046000,-153.43312401,0.0002543,2]
[426291749,1782249046000,-332.93162654,0.0002543,2]
[426291739,1782249046000,-151.0,0.00025365,2]
[426291741,1782249046000,-163.00626653,0.0002543,2]
[426291743,1782249046000,-162.6807791,0.0002543,2]
[426291748,1782249046000,-153.19464192,0.0002543,2]
[426291750,1782249046000,-172.49162341,0.0002543,2]
[426291751,1782249046000,-214.51006124,0.0002543,2]
[426291752,1782249046000,-280.13621339,0.0002543,2]
[426291755,1782249046000,-156.2468871,0.0002543,2]
[426291754,1782249046000,-190.67951842,0.0002543,2]
[426291753,1782249046000,-220.83054131,0.0002543,2]
[426291756,1782249046000,-197.16600127,0.0002543,2]
[426291757,1782249046000,-168.98768787,0.0002543,2]
[426291724,1782249046000,-403.33,0.00025,2]